fUST/lending_fUST_20240806
["ID","MTS","AMOUNT","RATE_DAILY","PERIOD"]
[334264654,1722874253751,-500.0,0.00042191,31]
[334264656,1722874253760,-500.0,0.00042191,31]
[334264658,1722874253769,-500.0,0.00042191,31]
[334264660,1722874253778,-603.47,0.00042191,31]
[334264673,1722874253902,-500.0,0.00042191,31]
[334264675,1722874253912,-500.0,0.00042191,31]
[334264677,1722874253922,-500.0,0.00042191,31]
[334264679,1722874253932,-609.54572276,0.00042191,31]
[334264681,1722874253942,-500.0,0.00042191,31]
[334264683,1722874253952,-500.0,0.00042191,31]
[334264685,1722874253961,-500.0,0.00042191,31]
[334264687,1722874253971,-1458.33,0.00042191,31]
[334264689,1722874253987,-500.0,0.00042191,31]
[334264691,1722874253997,-500.0,0.00042191,31]
[334264693,1722874254007,-500.0,0.00042191,31]
[334264695,1722874254024,-500.0,0.00042191,31]
[334264697,1722874254034,-500.0,0.00042191,31]
[334264699,1722874254043,-500.0,0.00042191,31]
[334264701,1722874254052,-500.0,0.00042191,31]
[334264703,1722874254061,-596.1,0.00042191,31]
[334264705,1722874254070,-500.0,0.00042191,31]
[334264707,1722874254079,-500.0,0.00042191,31]
[334264708,1722874254088,-500.0,0.00042191,31]
[334264710,1722874254097,-259.42,0.00042191,31]
[334264712,1722874254107,-560.99210467,0.00042191,31]
[334264714,1722874254116,-285.57315839,0.00042191,31]
[334264716,1722874254125,-500.0,0.00042191,31]
[334264718,1722874254134,-394.23,0.00042191,31]
[334264720,1722874254143,-3958.33,0.00042191,31]
[334264721,1722874254152,-3614.37,0.00042191,31]
[334264722,1722874254161,-287.74,0.00042191,31]
[334264723,1722874254170,-237.48,0.00042191,31]
[334264724,1722874254179,-500.0,0.00042191,31]
[334264725,1722874254188,-626.65,0.00042191,31]
[334264726,1722874254198,-323.45,0.00042191,31]
[334264727,1722874254207,-500.0,0.00042191,31]
[334264728,1722874254217,-515.98,0.00042191,31]
[334264729,1722874254226,-500.0,0.00042191,31]
[334264730,1722874254236,-357.63,0.00042191,31]
[334264731,1722874254245,-500.0,0.00042191,31]
[334264732,1722874254255,-500.0,0.00042191,31]
[334264733,1722874254264,-306.9,0.00042191,31]
[334264734,1722874254273,-500.0,0.00042191,31]
[334264735,1722874254283,-489.35,0.00042191,31]
[334264736,1722874254292,-330.3,0.00042191,31]
[334264737,1722874254302,-500.0,0.00042191,31]
[334264738,1722874254311,-500.0,0.00042191,31]
[334264739,1722874254321,-500.0,0.00042191,31]
[334264740,1722874254330,-500.0,0.00042191,31]
[334264741,1722874254346,-175.89,0.00042191,31]
[334264742,1722874254355,-500.0,0.00042191,31]
[334264743,1722874254365,-201.85,0.00042191,31]
[334264744,1722874254375,-500.0,0.00042191,31]
[334264745,1722874254386,-500.0,0.00042191,31]
[334264746,1722874254396,-500.0,0.00042191,31]
[334264747,1722874254405,-500.0,0.00042191,31]
[334264748,1722874254416,-698.21,0.00042191,31]
[334264749,1722874254427,-500.0,0.00042191,21]
[334264750,1722874254437,-500.0,0.00042191,31]
[334264751,1722874254447,-500.0,0.00042191,31]
[334264752,1722874254457,-191.88,0.00042191,31]
[334264753,1722874254468,-492.27,0.00042191,31]
[334264754,1722874254488,-500.0,0.00042191,31]
[334264755,1722874254502,-500.0,0.00042191,31]
[334264756,1722874254511,-510.24,0.00042191,31]
[334264757,1722874254521,-507.43,0.00042191,31]
[334264758,1722874254532,-500.0,0.00042191,31]
[334264759,1722874254541,-500.0,0.00042191,31]
[334264760,1722874254551,-500.0,0.00042191,31]
[334264761,1722874254562,-203.09,0.00042191,31]
[334264762,1722874254572,-500.0,0.00042191,31]
[334264763,1722874254582,-500.0,0.00042191,31]
[334264764,1722874254592,-500.0,0.00042191,31]
[334264765,1722874254603,-618.05,0.00042191,31]
[334264766,1722874254613,-217.41,0.00042191,31]
[334264767,1722874254623,-500.0,0.00042191,31]
[334264768,1722874254634,-500.0,0.00042191,31]
[334264769,1722874254645,-542.22,0.00042191,31]
[334264770,1722874254655,-500.0,0.00042191,31]
[334264771,1722874254664,-500.0,0.00042191,31]
[334264772,1722874254674,-500.0,0.00042191,31]
[334264773,1722874254685,-3500.0,0.00042191,31]
[334264774,1722874254695,-192.08310079,0.00042191,31]
[334264775,1722874254705,-500.0,0.00042191,31]
[334264776,1722874254715,-1083.91,0.00042191,31]
[334264777,1722874254726,-500.0,0.00042191,31]
[334264778,1722874254736,-346.88,0.00042191,31]
[334264779,1722874254747,-610.45,0.00042191,31]
[334264780,1722874254758,-575.68,0.00042191,31]
[334264781,1722874254769,-500.0,0.00042191,31]
[334264782,1722874254780,-500.0,0.00042191,31]
[334264783,1722874254790,-500.0,0.00042191,31]
[334264784,1722874254801,-163.83,0.00042191,31]
[334264785,1722874254811,-623.52,0.00042191,31]
[334264786,1722874254821,-500.0,0.00042191,31]
[334264787,1722874254831,-250.51,0.00042191,31]
[334264788,1722874254842,-500.0,0.00042191,31]
[334264789,1722874254852,-500.0,0.00042191,31]
[334264790,1722874254861,-500.0,0.00042191,31]
[334264791,1722874254875,-352.65997561,0.00042191,31]
[334264792,1722874254885,-521.58,0.00042191,31]
[334264793,1722874254895,-500.0,0.00042191,31]
[334264794,1722874254907,-500.0,0.00042191,31]
[334264795,1722874254916,-500.0,0.00042191,31]
[334264796,1722874254926,-500.0,0.00042191,31]
[334264797,1722874254936,-500.0,0.00042191,31]
[334264798,1722874254946,-583.91,0.00042191,31]
[334264799,1722874254956,-500.0,0.00042191,31]
[334264800,1722874254965,-500.0,0.00042191,31]
[334264801,1722874254975,-500.0,0.00042191,31]
[334264802,1722874254999,-550.3,0.00042191,31]
[334264803,1722874255009,-220.92,0.00042191,31]
[334264804,1722874255019,-500.0,0.00042191,2]
[334264805,1722874255029,-500.0,0.00042191,31]
[334264806,1722874255039,-510.1017678,0.00042191,31]
[334264807,1722874255049,-500.0,0.00042191,31]
[334264808,1722874255059,-173.96,0.00042191,31]
[334264809,1722874255068,-317.7,0.00042191,31]
[334264810,1722874255077,-500.0,0.00042191,31]
[334264811,1722874255086,-198.90829884,0.00042191,31]
[334264812,1722874255095,-500.0,0.00042191,31]
[334264813,1722874255105,-405.0,0.00042191,31]
[334264814,1722874255115,-500.0,0.00042191,31]
[334264815,1722874255124,-500.0,0.00042191,31]
[334264816,1722874255134,-173.74,0.00042191,31]
[334264817,1722874255144,-506.41261745,0.00042191,31]
[334264818,1722874255153,-500.0,0.00042191,31]
[334264819,1722874255163,-174.81,0.00042191,31]
[334264820,1722874255172,-500.0,0.00042191,31]
[334264821,1722874255181,-500.0,0.00042191,31]
[334264822,1722874255191,-160.821809,0.00042191,31]
[334264823,1722874255201,-500.0,0.00042191,31]
[334264824,1722874255210,-152.64890465,0.00042191,31]
[334264825,1722874255220,-500.0,0.00042191,31]
[334264826,1722874255229,-500.0,0.00042191,31]
[334264827,1722874255239,-222.10711758,0.00042191,31]
[334264828,1722874255248,-500.0,0.00042191,31]
[334264829,1722874255257,-500.0,0.00042191,31]
[334264830,1722874255266,-500.0,0.00042191,31]
[334264831,1722874255276,-518.76,0.00042191,31]
[334264832,1722874255285,-500.0,0.00042191,31]
[334264833,1722874255294,-500.0,0.00042191,31]
[334264834,1722874255303,-446.32474887,0.00042191,31]
[334264835,1722874255313,-645.16980668,0.00042191,31]
[334264836,1722874255322,-500.0,0.00042191,31]
[334264837,1722874255331,-500.0,0.00042191,31]
[334264838,1722874255341,-485.29,0.00042191,31]
[334264839,1722874255351,-500.0,0.00042191,31]
[334264840,1722874255364,-500.0,0.00042191,31]
[334264841,1722874255373,-500.0,0.00042191,31]
[334264842,1722874255382,-500.0,0.00042191,31]
[334264843,1722874255391,-500.0,0.00042191,31]
[334264844,1722874255401,-500.0,0.00042191,31]
[334264845,1722874255411,-500.0,0.00042191,31]
[334264846,1722874255420,-500.0,0.00042191,31]
[334264847,1722874255429,-652.24,0.00042191,31]
[334264848,1722874255439,-500.0,0.00042191,31]
[334264849,1722874255449,-500.0,0.00042191,31]
[334264850,1722874255460,-813.4,0.00042191,31]
[334264851,1722874255469,-500.0,0.00042191,31]
[334264852,1722874255490,-514.99043275,0.00042191,31]
[334264853,1722874255499,-500.0,0.00042191,31]
[334264854,1722874255508,-500.0,0.00042191,31]
[334264855,1722874255517,-500.0,0.00042191,31]
[334264856,1722874255526,-500.0,0.00042191,31]
[334264857,1722874255536,-500.0,0.00042191,31]
[334264858,1722874255545,-500.0,0.00042191,31]
[334264859,1722874255555,-500.0,0.00042191,31]
[334264860,1722874255564,-500.0,0.00042191,31]
[334264861,1722874255574,-500.0,0.00042191,31]
[334264862,1722874255584,-500.0,0.00042191,31]
[334264863,1722874255593,-500.0,0.00042191,31]
[334264864,1722874255603,-500.0,0.00042191,31]
[334264865,1722874255612,-500.0,0.00042191,31]
[334264866,1722874255621,-500.0,0.00042191,31]
[334264867,1722874255631,-500.0,0.00042191,31]
[334264868,1722874255640,-500.0,0.00042191,31]
[334264869,1722874255649,-500.0,0.00042191,31]
[334264870,1722874255658,-500.0,0.00042191,31]
[334264871,1722874255668,-500.0,0.00042191,31]
[334264872,1722874255677,-1013.58,0.00042191,31]
[334264873,1722874255686,-500.0,0.00042191,21]
[334264874,1722874255697,-500.0,0.00042191,31]
[334264875,1722874255707,-500.0,0.00042191,31]
[334264876,1722874255716,-500.0,0.00042191,31]
[334264877,1722874255726,-500.0,0.00042191,31]
[334264878,1722874255735,-500.0,0.00042191,31]
[334264879,1722874255744,-500.0,0.00042191,31]
[334264880,1722874255755,-500.0,0.00042191,31]
[334264881,1722874255764,-500.0,0.00042191,31]
[334264882,1722874255773,-500.0,0.00042191,60]
[334264883,1722874255783,-500.0,0.00042191,31]
[334264884,1722874255792,-500.0,0.00042191,60]
[334264885,1722874255801,-500.0,0.00042191,31]
[334264886,1722874255810,-312.24,0.00042191,31]
[334264887,1722874255820,-500.0,0.00042191,31]
[334264888,1722874255829,-500.0,0.00042191,31]
[334264889,1722874255839,-500.0,0.00042191,31]
[334264890,1722874255848,-500.0,0.00042191,31]
[334264891,1722874255858,-500.0,0.00042191,31]
[334264892,1722874255868,-500.0,0.00042191,31]
[334264893,1722874255877,-500.0,0.00042191,31]
[334264894,1722874255887,-500.0,0.00042191,31]
[334264895,1722874255896,-500.0,0.00042191,31]
[334264896,1722874255906,-500.0,0.00042191,31]
[334264897,1722874255915,-500.0,0.00042191,31]
[334264898,1722874255925,-500.0,0.00042191,31]
[334264899,1722874255935,-500.0,0.00042191,31]
[334264900,1722874255944,-500.0,0.00042191,31]
[334264901,1722874255954,-500.0,0.00042191,31]
[334264902,1722874255963,-1811.3,0.00042191,31]
[334264903,1722874255973,-500.0,0.00042191,31]
[334264904,1722874255995,-1279.16,0.00042191,31]
[334264905,1722874256004,-189.7,0.00042191,31]
[334264906,1722874256014,-500.0,0.00042191,31]
[334264907,1722874256023,-500.0,0.00042191,31]
[334264908,1722874256033,-403.96,0.00042191,31]
[334264909,1722874256142,-2349.98,0.00042191,31]
[334264910,1722874256152,-500.0,0.00042191,31]
[334264911,1722874256162,-293.83,0.00042191,31]
[334264912,1722874256171,-500.0,0.00042191,31]
[334264913,1722874256180,-500.0,0.00042191,31]
[334264914,1722874256189,-500.0,0.00042191,31]
[334264915,1722874256199,-500.0,0.00042191,31]
[334264916,1722874256208,-500.0,0.00042191,31]
[334264917,1722874256218,-458.33,0.00042191,31]
[334264918,1722874256228,-500.0,0.00042191,31]
[334264919,1722874256242,-500.0,0.00042191,31]
[334264920,1722874256251,-500.0,0.00042191,31]
[334264921,1722874256260,-500.0,0.00042191,31]
[334264922,1722874256270,-500.0,0.00042191,31]
[334264923,1722874256279,-500.0,0.00042191,31]
[334264924,1722874256289,-500.0,0.00042191,31]
[334264925,1722874256298,-500.0,0.00042191,31]
[334264926,1722874256307,-500.0,0.00042191,31]
[334264927,1722874256317,-500.0,0.00042191,31]
[334264928,1722874256326,-580.12367846,0.00042191,31]
[334264929,1722874256339,-500.0,0.00042191,31]
[334264930,1722874256351,-500.0,0.00042191,31]
[334264932,1722874256361,-500.0,0.00042191,31]
[334264933,1722874256370,-500.0,0.00042191,31]
[334264935,1722874256379,-309.41844037,0.00042191,31]
[334264937,1722874256393,-500.0,0.00042191,31]
[334264938,1722874256403,-500.0,0.00042191,31]
[334264940,1722874256413,-500.0,0.00042191,31]
[334264942,1722874256422,-500.0,0.00042191,31]
[334264944,1722874256436,-500.0,0.00042191,31]
[334264946,1722874256445,-500.0,0.00042191,31]
[334264948,1722874256457,-566.18,0.00042191,31]
[334264950,1722874256467,-357.73,0.00042191,31]
[334264952,1722874256484,-500.0,0.00042191,31]
[334264953,1722874256498,-500.0,0.00042191,31]
[334264955,1722874256508,-500.0,0.00042191,31]
[334264956,1722874256519,-435.18663389,0.00042191,31]
[334264957,1722874256537,-64.81336611,0.00042191,31]
[334264958,1722874256547,-717.66,0.00042191,31]
[334264959,1722874256556,-418.6,0.00042191,31]
[334264960,1722874256566,-524.46,0.00042191,31]
[334264961,1722874256575,-177.62,0.00042191,31]
[334264962,1722874256585,-500.0,0.00042191,31]
[334264963,1722874256594,-500.0,0.00042191,31]
[334264964,1722874256603,-500.0,0.00042191,31]
[334264965,1722874256612,-500.0,0.00042191,31]
[334264966,1722874256622,-500.0,0.00042191,31]
[334264967,1722874256631,-500.0,0.00042191,31]
[334264968,1722874256641,-500.0,0.00042191,31]
[334264969,1722874256650,-500.0,0.00042191,31]
[334264970,1722874256659,-500.0,0.00042191,31]
[334264971,1722874256671,-500.0,0.00042191,31]
[334264972,1722874256681,-500.0,0.00042191,31]
[334264973,1722874256690,-500.0,0.00042191,31]
[334264974,1722874256700,-500.0,0.00042191,31]
[334264975,1722874256710,-500.0,0.00042191,31]
[334264976,1722874256719,-500.0,0.00042191,31]
[334264977,1722874256735,-168.8,0.00042191,31]
[334264978,1722874256745,-500.0,0.00042191,31]
[334264979,1722874256754,-505.53,0.00042191,31]
[334264980,1722874256765,-500.0,0.00042191,31]
[334264981,1722874256774,-500.0,0.00042191,31]
[334264982,1722874256783,-500.0,0.00042191,21]
[334264983,1722874256793,-500.0,0.00042191,31]
[334264984,1722874256802,-500.0,0.00042191,31]
[334264985,1722874256812,-500.0,0.00042191,31]
[334264986,1722874256822,-231.63,0.00042191,31]
[334264987,1722874256831,-151.0,0.00042191,14]
[334264988,1722874256840,-537.72,0.00042191,31]
[334264989,1722874256850,-500.0,0.00042191,31]
[334264990,1722874256859,-564.56,0.00042191,31]
[334264991,1722874256869,-500.0,0.00042191,31]
[334264992,1722874256879,-386.04,0.00042191,31]
[334264993,1722874256888,-151.0,0.00042191,14]
[334264994,1722874256899,-500.0,0.00042191,31]
[334264996,1722874256909,-151.0,0.00042191,14]
[334264998,1722874256919,-494.91736854,0.00042191,31]
[334265000,1722874256929,-449.37264102,0.00042191,31]
[334265002,1722874256939,-500.0,0.00042191,31]
[334265004,1722874256948,-151.0,0.00042191,14]
[334265006,1722874256958,-500.0,0.00042191,31]
[334265008,1722874256968,-500.0,0.00042191,31]
[334265010,1722874256983,-151.0,0.00042191,14]
[334265012,1722874256995,-500.0,0.00042191,31]
[334265013,1722874257005,-500.0,0.00042191,31]
[334265014,1722874257014,-151.0,0.00042191,14]
[334265016,1722874257024,-151.0,0.00042191,14]
[334265018,1722874257034,-500.0,0.00042191,31]
[334265020,1722874257044,-223.39696642,0.00042191,31]
[334265021,1722874257053,-500.0,0.00042191,31]
[334265023,1722874257063,-500.0,0.00042191,31]
[334265024,1722874257072,-151.0,0.00042191,14]
[334265026,1722874257082,-500.0,0.00042191,31]
[334265028,1722874257091,-151.0,0.00042191,14]
[334265030,1722874257101,-500.0,0.00042191,31]
[334265032,1722874257110,-500.0,0.00042191,31]
[334265034,1722874257119,-500.0,0.00042191,31]
[334265036,1722874257129,-500.0,0.00042191,31]
[334265038,1722874257144,-387.3079243,0.00042191,31]
[334265041,1722874257161,-500.0,0.00042191,31]
[334265043,1722874257176,-500.0,0.00042191,31]
[334265044,1722874257191,-151.0,0.00042191,14]
[334265046,1722874257206,-500.0,0.00042191,31]
[334265048,1722874257224,-500.0,0.00042191,31]
[334265049,1722874257246,-521.98,0.00042191,31]
[334265050,1722874257264,-346.46,0.00042191,31]
[334265051,1722874257279,-500.0,0.00042191,31]
[334265052,1722874257293,-500.0,0.00042191,31]
[334265053,1722874257310,-344.12,0.00042191,31]
[334265054,1722874257326,-500.0,0.00042191,31]
[334265055,1722874257338,-645.97660536,0.00042191,31]
[334265056,1722874257351,-297.361148,0.00042191,14]
[334265057,1722874257371,-297.361148,0.00042191,14]
[334265058,1722874257386,-230.939282,0.00042191,14]
[334265059,1722874257403,-230.939282,0.00042191,14]
[334265060,1722874257418,-193.034641,0.00042191,14]
[334265061,1722874257432,-193.034641,0.00042191,14]
[334265062,1722874257443,-168.689115,0.00042191,14]
[334265063,1722874257458,-500.0,0.00042191,31]
[334265064,1722874257474,-168.689115,0.00042191,14]
[334265065,1722874257498,-151.0,0.00042191,14]
[334265066,1722874257513,-262.491745,0.00042191,14]
[334265067,1722874257527,-5508.51,0.00042191,31]
[334265068,1722874257540,-935.76307521,0.00042191,31]
[334265069,1722874257551,-403.96929,0.00042191,14]
[334265070,1722874257564,-1333.410886,0.00042191,14]
[334265071,1722874257577,-151.0,0.00042191,14]
[334265072,1722874257589,-500.0,0.00042191,31]
[334265073,1722874257601,-1333.410886,0.00042191,14]
[334265074,1722874257614,-403.96929,0.00042191,14]
[334265075,1722874257627,-500.0,0.00042191,31]
[334265076,1722874257641,-399.337991,0.00042191,14]
[334265077,1722874257653,-399.337991,0.00042191,14]
[334265078,1722874257665,-151.0,0.00042191,14]
[334265079,1722874257677,-1464.51,0.00042191,20]
[334265080,1722874257690,-1885.445105,0.00042191,14]
[334265081,1722874257702,-357.2178,0.00042191,14]
[334265082,1722874257714,-1885.445105,0.00042191,14]
[334265083,1722874257729,-357.2178,0.00042191,14]
[334265084,1722874257742,-435.27347,0.00042191,14]
[334265085,1722874257754,-518.35242,0.00042191,14]
[334265086,1722874257766,-435.27347,0.00042191,14]
[334265087,1722874257778,-518.35242,0.00042191,14]
[334265088,1722874257791,-1018.93,0.00042191,31]
[334265089,1722874257804,-283.222801,0.00042191,14]
[334265090,1722874257821,-283.222801,0.00042191,14]
[334265091,1722874257834,-150.112233,0.000422,10]
[334265092,1722874257847,-6782.28,0.000422,14]
[334265093,1722874257859,-150.0,0.00042209,2]
[334265094,1722874257871,-152.0,0.00042268,31]
[334265095,1722874257884,-152.0,0.00042268,31]
[334265096,1722874257898,-400.0,0.00042442,2]
[334265097,1722874257910,-1229.48295503,0.000425,120]
[334265098,1722874257923,-152.0,0.00042621,31]
[334265099,1722874257936,-152.0,0.00042621,31]
[334265100,1722874257948,-525.0,0.000427,10]
[334265101,1722874257960,-150.112233,0.000427,5]
[334265102,1722874257973,-500.0,0.00042737,31]
[334265103,1722874257990,-500.0,0.00042737,31]
[334265104,1722874258002,-500.0,0.00042737,31]
[334265105,1722874258015,-500.0,0.00042737,31]
[334265106,1722874258028,-500.0,0.00042737,31]
[334265107,1722874258039,-500.0,0.00042737,31]
[334265108,1722874258048,-500.0,0.00042737,31]
[334265109,1722874258057,-500.0,0.00042737,31]
[334265110,1722874258066,-500.0,0.00042737,31]
[334265111,1722874258076,-345.47815922,0.00042737,31]
[334265112,1722874258085,-500.0,0.00042737,31]
[334265113,1722874258094,-500.0,0.00042737,31]
[334265114,1722874258103,-500.0,0.00042738,31]
[334265115,1722874258113,-164.29,0.00042738,31]
[334265116,1722874258123,-518.49,0.00042738,31]
[334265117,1722874258133,-500.0,0.00042738,31]
[334265118,1722874258143,-500.0,0.00042738,31]
[334265119,1722874258152,-529.02,0.00042738,31]
[334265120,1722874258163,-403.87,0.00042738,31]
[334265121,1722874258172,-500.0,0.00042738,31]
[334265122,1722874258182,-500.0,0.00042738,31]
[334265123,1722874258191,-500.0,0.00042738,31]
[334265124,1722874258201,-577.66,0.00042738,31]
[334265125,1722874258210,-500.0,0.00042738,31]
[334265126,1722874258220,-567.63,0.00042738,31]
[334265127,1722874258234,-500.0,0.00042738,31]
[334265128,1722874258243,-168.689115,0.00042738,14]
[334265129,1722874258252,-168.689115,0.00042738,14]
[334265130,1722874258261,-151.0,0.00042738,14]
[334265131,1722874258271,-403.96929,0.00042738,14]
[334265132,1722874258280,-1333.410886,0.00042738,14]
[334265133,1722874258289,-151.0,0.00042738,14]
[334265134,1722874258299,-1333.410886,0.00042738,14]
[334265135,1722874258308,-403.96929,0.00042738,14]
[334265136,1722874258318,-399.337991,0.00042738,14]
[334265137,1722874258328,-399.337991,0.00042738,14]
[334265138,1722874258341,-673.96,0.00042739,31]
[334265139,1722874258351,-500.0,0.00042739,31]
[334265140,1722874258608,-500.0,0.00042739,31]
[334265141,1722874258627,-500.0,0.00042739,31]
[334265142,1722874258638,-586.87,0.00042739,31]
[334265143,1722874258647,-500.0,0.00042739,31]
[334265144,1722874258657,-974.93,0.00042739,31]
[334265145,1722874258666,-500.0,0.00042739,31]
[334265146,1722874258677,-602.51,0.00042739,31]
[334265147,1722874258687,-500.0,0.00042739,31]
[334265148,1722874258696,-560.79,0.00042739,31]
[334265149,1722874258706,-500.0,0.00042739,31]
[334265150,1722874258716,-905.0,0.00042739,31]
[334265151,1722874258727,-674.81,0.00042739,31]
[334265152,1722874258741,-500.0,0.00042739,31]
[334265153,1722874258750,-306.8807014,0.00042739,31]
[334265154,1722874258759,-524.71081593,0.00042739,31]
[334265155,1722874258768,-2430.13,0.00042739,31]
[334265156,1722874258777,-1747.43,0.00042739,31]
[334265157,1722874258787,-549.06912892,0.00042739,31]
[334265158,1722874258796,-1873.59,0.00042739,31]
[334265159,1722874258806,-500.0,0.00042739,31]
[334265160,1722874258815,-730.68,0.00042739,31]
[334265161,1722874258824,-500.0,0.00042739,31]
[334265162,1722874258835,-500.0,0.00042739,31]
[334265163,1722874258844,-527.64,0.00042739,31]
[334265164,1722874258854,-1485.29,0.00042739,31]
[334265165,1722874258864,-500.0,0.00042739,31]
[334265166,1722874258874,-500.0,0.00042739,31]
[334265167,1722874258884,-500.0,0.00042739,31]
[334265168,1722874258893,-500.0,0.00042739,31]
[334265169,1722874258902,-500.0,0.00042739,31]
[334265170,1722874258914,-500.0,0.00042739,31]
[334265171,1722874258924,-500.0,0.00042739,31]
[334265172,1722874258933,-500.0,0.00042739,31]
[334265173,1722874258943,-500.0,0.00042739,31]
[334265174,1722874258952,-558.23,0.00042739,31]
[334265175,1722874258962,-500.0,0.00042739,31]
[334265176,1722874258972,-590.34,0.00042739,31]
[334265177,1722874258987,-534.91,0.00042739,31]
[334265178,1722874258995,-1189.55,0.00042739,31]
[334265179,1722874259004,-1121.6,0.00042739,31]
[334265180,1722874259013,-500.0,0.00042739,31]
[334265181,1722874259022,-500.0,0.00042739,31]
[334265182,1722874259031,-1261.4,0.00042739,31]
[334265183,1722874259041,-500.0,0.00042739,31]
[334265184,1722874259050,-526.76796466,0.00042739,31]
[334265185,1722874259059,-500.0,0.00042739,31]
[334265186,1722874259068,-572.32,0.00042739,31]
[334265187,1722874259079,-824.69,0.00042739,31]
[334265188,1722874259088,-909.24,0.00042739,31]
[334265189,1722874259099,-518.76,0.00042739,31]
[334265190,1722874259109,-500.0,0.00042739,31]
[334265191,1722874259118,-623.46,0.00042739,31]
[334265192,1722874259128,-1050.3,0.00042739,31]
[334265193,1722874259137,-500.0,0.00042739,31]
[334265194,1722874259147,-720.92,0.00042739,31]
[334265195,1722874259156,-351.6992266,0.00042739,31]
[334265196,1722874259166,-500.0,0.00042739,31]
[334265197,1722874259176,-500.0,0.00042739,31]
[334265198,1722874259185,-500.0,0.00042739,31]
[334265199,1722874259195,-500.0,0.00042739,31]
[334265200,1722874259205,-798.34,0.00042739,31]
[334265201,1722874259215,-500.0,0.00042739,31]
[334265202,1722874259225,-500.0,0.00042739,31]
[334265203,1722874259239,-500.0,0.00042739,31]
[334265204,1722874259248,-500.0,0.00042739,31]
[334265205,1722874259257,-693.88,0.00042739,31]
[334265206,1722874259266,-707.22,0.00042739,31]
[334265207,1722874259276,-500.0,0.00042739,31]
[334265208,1722874259286,-500.0,0.00042739,31]
[334265209,1722874259296,-1028.03,0.00042739,31]
[334265210,1722874259305,-500.0,0.00042739,31]
[334265211,1722874259315,-605.71,0.00042739,31]
[334265212,1722874259325,-500.0,0.00042739,31]
[334265213,1722874259336,-769.85,0.00042739,31]
[334265214,1722874259345,-1021.68,0.00042739,31]
[334265215,1722874259355,-856.82,0.00042739,31]
[334265216,1722874259370,-500.0,0.00042739,31]
[334265217,1722874259380,-500.0,0.00042739,31]
[334265218,1722874259390,-564.8,0.00042739,31]
[334265219,1722874259399,-1260.79,0.00042739,31]
[334265220,1722874259410,-826.62,0.00042739,31]
[334265221,1722874259420,-500.0,0.00042739,31]
[334265222,1722874259430,-500.0,0.00042739,31]
[334265223,1722874259442,-500.0,0.00042739,31]
[334265224,1722874259452,-500.0,0.00042739,31]
[334265225,1722874259462,-834.17,0.00042739,31]
[334265226,1722874259472,-500.0,0.00042739,31]
[334265227,1722874259488,-1563.84,0.00042739,31]